[Event "5th Sharjah Masters 2022"]
[Site "Sharjah"]
[Date "2022.05.22"]
[Round "2.38"]
[White "Ortega Amarelle, Mariano"]
[Black "Farahat, Ali"]
[Result "1-0"]
[ECO "D02"]
[WhiteElo "2476"]
[BlackElo "2381"]
[Annotator "TA"]
[PlyCount "113"]
[EventDate "2022.05.21"]
[EventType "swiss"]
[EventCountry "UAE"]
[SourceTitle "playchess.com"]
[Source "ChessBase"]
[SourceQuality "1"]
[TimeControl "5400+30"]

{[%evp 9,113,3,41,47,43,56,60,53,48,67,82,87,81,80,98,83,98,64,87,80,89,68,143,105,205,194,184,183,185,183,180,196,170,160,153,156,203,168,267,266,286,277,279,291,282,229,250,243,250,229,309,187,307,294,307,309,325,318,325,312,377,325,391,378,393,404,535,531,516,513,769,768,716,688,911,902,1033,1027,929,1035,1030,1010,1014,1017,981,962,914,776,764,743,682,700,746,713,678,739,747,744,1482,1655,1269,724,720,673,6398,5627]} 1. d4 {[%emt 0:00:07]} d5 {[%emt 0:00:03]} 2. Bf4 {[%emt 0:00:26]} Nf6 {[%emt 0:00:35]} 3. e3 {[%emt 0:00:10]} c5 {[%emt 0:00:37]} 4. Nf3 {[%emt 0:00:19]} Nc6 {[%emt 0:00:24]} 5. Nbd2 {[%emt 0:00:20]} g6 {[%emt 0:00:54]} 6. dxc5 {[%emt 0:01:28] D02: 1 d4 d5 2 Nf3 sidelines, including 2...Nf6 3 g3 and 2...Nf6 3 Bf4.} Bg7 {[%emt 0:02:21]} 7. c3 {[%emt 0:00:36]} Nh5 {[%emt 0:03:18]} 8. Bg5 {[%emt 0:05:17] White is slightly better.} h6 {[%emt 0:16:04]} 9. Bh4 {[%emt 0:00:11] [#]} Qd7 $146 {[%emt 0:13:03]} ({Predecessor:} 9... g5 10. Nd4 gxh4 11. Qxh5 e6 12. Bb5 Bd7 13. Bxc6 bxc6 14. f4 e5 15. Nf5 Bxf5 16. Qxf5 {0-1 (43) Gorozhanin,M (2408)-Tari,A (2584) Chess.com INT 2017}) 10. Nd4 {[%emt 0:30:46][%cal Bf3d4,Bd4b5,Bb5d6][%mdl 32]} e5 {[%emt 0:01:47]} 11. Nb5 {[%emt 0:01:01]} O-O {[%emt 0:00:33]} 12. Be2 {[%emt 0:00:26]} b6 {[%emt 0:07:19]} 13. Nb3 {[%emt 0:10:36]} Nf6 {[%emt 0:11:06]} 14. Bxf6 {[%emt 0:20:28]} Bxf6 {[%emt 0:00:05]} 15. Nd6 {[%emt 0:00:47]} d4 {[%emt 0:03:29]} (15... Ne7 $14) 16. O-O {[%emt 0:01:18][%cal Re3d4] White is more active.} Bg7 {[%emt 0:02:23]} (16... bxc5 $16 17. Ne4 Be7) 17. cxd4 {[%emt 0:06:19]} exd4 {[%emt 0:00:17]} 18. exd4 {[%emt 0:01:36]} bxc5 {[%emt 0:03:02]} 19. dxc5 {[%emt 0:00:02]} Bxb2 {[%emt 0:00:25]} 20. Rb1 {[%emt 0:00:06]} Bg7 {[%emt 0:01:04]} 21. Bb5 {[%emt 0:07:31]} a6 {[%emt 0:03:09]} 22. Bc4 {[%emt 0:02:59]} Qc7 {[%emt 0:07:00]} (22... Ra7 $16 23. Re1 Qd8) 23. Re1 {[%emt 0:00:12]} Bd7 {[%emt 0:02:05]} (23... Rb8 {is a better defense.} 24. Qd2 a5) 24. Qd3 $18 {[%emt 0:02:19][%csl LRa6,LRg6]} Kh7 {[%emt 0:02:58]} 25. Bxf7 {[%emt 0:03:57]} Rxf7 {[%emt 0:04:29]} 26. Nxf7 {[%emt 0:00:04] Pair of Knights!} Bf5 {[%emt 0:00:12]} 27. Qd6 {[%emt 0:00:58]} Qxd6 {[%emt 0:00:03]} 28. Nxd6 {[%emt 0:00:15]} Bxb1 {[%emt 0:00:05]} 29. Rxb1 {[%emt 0:00:05]} a5 {[%emt 0:01:01]} 30. a4 {[%emt 0:00:25]} Rf8 {[%emt 0:01:47]} (30... Rb8 {was worth a try.} 31. Nb5 Re8) 31. Nd2 {[%emt 0:01:14]} Nb4 {[%emt 0:02:10]} 32. N2e4 {[%emt 0:00:17]} Bd4 {[%emt 0:02:08]} 33. Rd1 {[%emt 0:00:39]} Nc6 {[%emt 0:00:26]} 34. Kf1 {[%emt 0:00:21]} h5 {[%emt 0:00:52]} 35. f3 {[%emt 0:00:21]} Kh6 {[%emt 0:00:06] Inhibits Ng5.} 36. h3 {[%emt 0:00:11][%cal Bh2h3,Bh3g4][%mdl 32]} h4 {[%emt 0:00:12]} 37. Nb5 {[%emt 0:00:56]} Bg7 {[%emt 0:00:39]} 38. Rd7 {[%emt 0:01:38] White is clearly winning.} Ne5 {[%emt 0:01:22]} 39. Ra7 {[%emt 0:00:36]} g5 {[%emt 0:00:17]} 40. Rxa5 {[%emt 0:00:29]} g4 {[%emt 0:00:12]} 41. hxg4 {[%emt 0:00:34]} h3 {[%emt 0:00:15]} 42. Ra6+ {[%emt 0:00:15]} Ng6 {[%emt 0:00:21]} 43. gxh3 {[%emt 0:00:47]} Rxf3+ {[%emt 0:00:32]} 44. Kg2 {[%emt 0:00:16]} Re3 {[%emt 0:00:24]} 45. Nbd6 {[%emt 0:00:31]} Kh7 {[%emt 0:00:05]} 46. Ng5+ {[%emt 0:00:32]} Kg8 {[%emt 0:00:12]} 47. Ra8+ {[%emt 0:00:13]} Bf8 {[%emt 0:00:13]} 48. c6 {[%emt 0:00:46] [#] Black must now prevent c7.} Rc3 {[%emt 0:00:06]} 49. Ne6 {[%emt 0:01:14] c7 is the strong threat.} Rxc6 {[%emt 0:00:31]} 50. Nxf8 {[%emt 0:00:15]} Nxf8 {[%emt 0:00:02][%mdl 4096] Endgame KRN-KRN} 51. Ne4 {[%emt 0:00:45]} Kg7 {[%emt 0:00:08]} 52. Ra7+ {[%emt 0:00:18]} Kh6 {[%emt 0:00:28]} 53. h4 {[%emt 0:00:27]} Rc2+ {[%emt 0:03:18]} 54. Kf3 {[%emt 0:00:26] [#] White threatens g5+ and mate.} Rb2 {[%emt 0:00:09]} 55. a5 {[%emt 0:01:16]} Rb3+ {[%emt 0:00:23]} 56. Ke2 {[%emt 0:00:25]} Ne6 {[%emt 0:01:35]} 57. Ra6 {[%emt 0:00:10] Weighted Error Value: White=0.12 (very precise) /Black=0.33} 1-0

[Event "5th Sharjah Masters 2022"]
[Site "Sharjah"]
[Date "2022.05.22"]
[Round "2.39"]
[White "Ammar, Sedrani"]
[Black "Gunina, Valentina"]
[Result "0-1"]
[ECO "D00"]
[WhiteElo "2255"]
[BlackElo "2471"]
[Annotator "TA"]
[PlyCount "42"]
[EventDate "2022.05.21"]
[EventType "swiss"]
[EventCountry "UAE"]
[SourceTitle "playchess.com"]
[Source "ChessBase"]
[SourceQuality "1"]
[TimeControl "5400+30"]

{[%evp 9,42,0,-5,-29,-25,-39,-31,-35,-44,-38,-37,-41,-42,-50,-39,-52,-50,-118,-113,-179,-165,-156,-127,-193,-86,-235,-233,-218,-212,-228,-124,-120,-120,-119,-72]} 1. d4 {[%emt 0:00:03]} d5 {[%emt 0:00:06]} 2. Bf4 {[%emt 0:00:16]} c5 {[%emt 0:00:06]} 3. e3 {[%emt 0:00:56]} Nc6 {[%emt 0:00:11]} 4. Nc3 {[%emt 0:00:45]} Bf5 {[%emt 0:02:24]} 5. Nf3 {[%emt 0:02:38]} e6 {[%emt 0:01:02]} 6. a3 {[%emt 0:11:09] D00: 1 d4 d5: Unusual lines.} Nf6 {[%emt 0:01:08]} 7. dxc5 {[%emt 0:05:24]} Bxc5 {[%emt 0:00:31]} 8. h3 {[%emt 0:01:32] Black is slightly better.} O-O {[%emt 0:01:06]} 9. Bd3 {[%emt 0:00:17]} Bxd3 {[%emt 0:00:30] [#]} 10. Qxd3 $146 {[%emt 0:00:30]} ({Predecessor:} 10. cxd3 a6 11. O-O h6 12. d4 Ba7 13. Ne5 Ne7 14. Qb3 b5 15. Rac1 Nh5 16. Bh2 {0-1 (42) Venturas,B (554)-Tolnai,R (807) LSS email 2019}) 10... Re8 {[%emt 0:02:16]} 11. Bg5 {[%emt 0:09:15]} h6 {[%emt 0:02:13]} 12. Bh4 {[%emt 0:01:37]} Bd6 {[%emt 0:01:11]} 13. O-O-O {[%emt 0:03:37] [#]} (13. O-O $15) 13... Rc8 $1 $17 {[%emt 0:00:30]} 14. Bg3 {[%emt 0:00:30]} (14. Nd2 $17) 14... Bxg3 $19 {[%emt 0:00:30]} 15. fxg3 {[%emt 0:00:30]} Qc7 {[%emt 0:00:30]} 16. g4 {[%emt 0:00:30]} (16. e4 $17) 16... a6 {[%emt 0:00:30]} (16... b5 $19 {is more deadly. aiming for ...b4.} 17. Nxb5 Qb6) 17. Rhf1 {[%emt 0:00:30]} (17. e4 $17 {was the only defense.}) 17... b5 {[%emt 0:00:30]} 18. g5 {[%emt 0:00:30]} hxg5 {[%emt 0:00:30]} 19. Nxg5 {[%emt 0:00:30][%cal Of1f6]} Qg3 {[%emt 0:00:30]} ({Better is} 19... Ne5 $19 20. Qd4 Nc4 21. Rxf6 gxf6 22. Qxf6 Qe7) 20. Rxf6 $17 {[%emt 0:00:30] [#] White threatens Qh7+ and mate.} Qxg5 {[%emt 0:00:30]} 21. Rf4 {[%emt 0:00:30]} Qg3 {[%emt 0:04:53] Weighted Error Value: White=0.29 (precise) /Black=0.19 (very precise)} (21... Ne5 $142 22. Qe2 Nc4) 0-1

[Event "5th Sharjah Masters 2022"]
[Site "Sharjah"]
[Date "2022.05.22"]
[Round "2.40"]
[White "Nikolov, Momchil"]
[Black "Vogt, Lothar"]
[Result "1/2-1/2"]
[ECO "E71"]
[WhiteElo "2454"]
[BlackElo "2365"]
[Annotator "TA"]
[PlyCount "73"]
[EventDate "2022.05.21"]
[EventType "swiss"]
[EventCountry "UAE"]
[SourceTitle "playchess.com"]
[Source "ChessBase"]
[SourceQuality "1"]
[TimeControl "5400+30"]

{[%evp 13,73,27,39,35,37,31,34,19,70,66,81,66,96,100,100,104,125,80,89,87,84,64,90,70,120,124,136,120,163,166,162,113,120,118,94,129,119,116,133,96,202,26,27,23,56,-142,0,-135,81,-150,8,0,206,189,180,14,56,39,315,316,357,342]} 1. d4 {[%emt 0:00:04]} Nf6 {[%emt 0:00:03]} 2. c4 {[%emt 0:00:09]} g6 {[%emt 0:00:07]} 3. Nc3 {[%emt 0:00:08]} Bg7 {[%emt 0:00:06]} 4. e4 {[%emt 0:00:07]} d6 {[%emt 0:00:05]} 5. h3 {[%emt 0:00:08]} O-O {[%emt 0:00:41]} 6. Be3 {[%emt 0:00:07]} e5 {[%emt 0:00:44]} 7. d5 {[%emt 0:00:16]} a5 {[%emt 0:01:24]} 8. g4 {[%emt 0:02:12] E71: King's Indian: 4 e4 d6 5 h3.} Na6 {[%emt 0:00:28]} 9. Nge2 {[%emt 0:00:49]} h5 {[%emt 0:07:02]} 10. g5 {[%emt 0:11:18] White is slightly better.} Nh7 {[%emt 0:07:18]} (10... Nd7 $11) 11. Qd2 $14 {[%emt 0:00:47]} f5 {[%emt 0:07:54] White must now prevent ...f4.} 12. gxf6 {[%emt 0:02:01]} Qxf6 {[%emt 0:00:27][%cal Oh7g5]} 13. O-O-O {[%emt 0:01:28]} Bd7 {[%emt 0:01:23]} 14. Rg1 {[%emt 0:12:10] [#]} Kh8 $146 {[%emt 0:02:36]} ({Predecessor:} 14... a4 15. Kb1 Rfb8 16. Nc1 b6 17. Be2 Kh8 18. h4 Nc5 19. Rg2 Qxh4 20. Rxg6 Nxe4 21. Nxe4 {½-½ (59) Hristovski,S (2139)-Slavkovic,U (1794) Skopje 2019}) 15. f4 {[%emt 0:09:44]} Bh6 {[%emt 0:10:49]} 16. fxe5 {[%emt 0:01:56]} Bxe3 {[%emt 0:00:08]} 17. Qxe3 {[%emt 0:01:10]} (17. exf6 Bxd2+ 18. Rxd2 (18. Kxd2 Rxf6 19. Bg2 Nc5 $11) 18... Rxf6 $11) 17... dxe5 {[%emt 0:10:26]} 18. Kb1 {[%emt 0:01:18]} Be8 {[%emt 0:03:26]} (18... g5 $14) 19. Nc1 $16 {[%emt 0:05:43]} b6 {[%emt 0:12:19]} 20. d6 {[%emt 0:12:39] White is more active.} Rd8 {[%emt 0:07:01]} 21. dxc7 {[%emt 0:07:04]} Nxc7 {[%emt 0:00:03]} 22. Rxd8 {[%emt 0:00:43]} (22. Nd5 $18 Nxd5 23. cxd5) 22... Qxd8 {[%emt 0:00:03]} 23. Qxb6 {[%emt 0:00:30]} Qd4 {[%emt 0:00:28]} 24. Qxd4 {[%emt 0:06:00]} (24. Qxc7 Qxg1 25. Qxe5+ Kg8 $14) 24... exd4 {[%emt 0:00:03]} 25. Nb5 {[%emt 0:03:26]} Ne6 {[%emt 0:00:47]} 26. Nb3 {[%emt 0:02:20]} Bc6 {[%emt 0:02:14]} (26... Nf6 $16) 27. Nd6 $2 {[%emt 0:05:26]} (27. N3xd4 $6 Bxe4+ 28. Kc1 Nhg5 $16) ({Better is} 27. Bd3 $18) 27... Nhg5 {[%emt 0:01:11]} 28. Nxa5 {[%emt 0:01:57]} Ba8 {[%emt 0:06:57]} 29. Bd3 {[%emt 0:13:20]} (29. Bg2 $14 {stays ahead.}) 29... Rf3 {[%emt 0:18:47]} (29... Nxh3 $17 30. Rxg6 Nef4) 30. Rd1 {[%emt 0:00:30]} (30. h4 $11 {keeps the balance.}) 30... Rf8 $2 {[%emt 0:00:30] [#]} (30... Nxh3 $17 {keeps the pressure on. ...Nf2 is the strong threat.} 31. b4 Nf2) 31. Rg1 $2 (31. h4 $1 $16 {[%cal Rh4g5] and life is bright.} Nf3 32. b4) 31... Nf3 (31... Nxh3 $17 32. Rxg6 Nef4) 32. Rd1 {[%emt 0:01:00]} (32. Rxg6 Nf4 33. e5 (33. Rh6+ $2 Kg7 $19) 33... Nxe5 34. Rh6+ Kg7 35. Rh7+ Kg8 $19) 32... Nf4 $2 {[%emt 0:01:00]} (32... Nfg5 $1 $11 {and Black has nothing to worry.}) 33. c5 {[%emt 0:00:30][%cal Bc4c5,Bc5c6][%mdl 32] aiming for Bf1.} Nxh3 {[%emt 0:00:30] [#]} 34. Be2 $2 {[%emt 0:00:30]} (34. c6 $1 $18 {[%cal Rc6c7] And now c7 would win.} Nf2 35. c7) 34... Ne5 {[%emt 0:00:30][%cal Od4d3]} (34... Nf2 $5 {[%cal Rf2d1]} 35. Bxf3 Rxf3 $16) 35. Rxd4 {[%emt 0:00:30] Strongly threatening Ndc4.} (35. Nac4 $5 {[%cal Rc4e5]} Nd7 36. Nb6 (36. Rxd4 Nf4 $14) 36... Nxc5 37. Rxd4 $14 (37. Nxa8 d3 $11)) 35... Rf2 $2 {[%emt 0:00:30][%mdl 8192]} ({Black should play} 35... h4 $14) 36. Bb5 $18 {[%emt 0:00:30] Hoping for c6.} Nf4 {[%emt 0:00:30]} 37. c6 {[%emt 0:00:30][%mdl 32768] Weighted Error Value: White=0.50/Black=0.67. An unexpected result.} 1/2-1/2

[Event "5th Sharjah Masters 2022"]
[Site "Sharjah"]
[Date "2022.05.23"]
[Round "3.1"]
[White "Idani, Pouya"]
[Black "Sindarov, Javokhir"]
[Result "1/2-1/2"]
[ECO "C83"]
[WhiteElo "2635"]
[BlackElo "2609"]
[Annotator "TA"]
[PlyCount "94"]
[EventDate "2022.05.21"]
[EventType "swiss"]
[EventCountry "UAE"]
[SourceTitle "playchess.com"]
[Source "ChessBase"]
[SourceQuality "1"]
[TimeControl "5400+30"]

{[%evp 21,94,12,13,0,0,0,0,0,0,0,0,0,0,0,-3,0,0,0,0,0,0,0,0,-23,0,0,0,0,-1,-16,0,0,0,0,0,4,8,0,21,28,58,43,30,29,83,79,72,81,66,39,39,24,25,0,0,0,0,0,0,0,0,0,0,0,59,59,59,59,133,133,133,133,195,195,204]} 1. e4 {[%emt 0:00:02]} e5 {[%emt 0:00:06]} 2. Nf3 {[%emt 0:00:04]} Nc6 {[%emt 0:00:05]} 3. Bb5 {[%emt 0:00:04][%cal Bf1b5,Bb5a4,Ba4b3][%mdl 32]} a6 {[%emt 0:00:04]} 4. Ba4 {[%emt 0:00:03]} Nf6 {[%emt 0:00:05]} 5. O-O {[%emt 0:00:05]} Nxe4 {[%emt 0:00:06]} 6. d4 {[%emt 0:00:06]} b5 {[%emt 0:00:08]} 7. Bb3 {[%emt 0:00:04]} d5 {[%emt 0:00:08]} 8. dxe5 {[%emt 0:00:05]} Be6 {[%emt 0:00:04]} 9. c3 {[%emt 0:00:06]} Be7 {[%emt 0:01:17]} 10. Be3 {[%emt 0:00:41]} O-O {[%emt 0:00:12]} 11. Nbd2 {[%emt 0:00:06]} Bg4 $1 {[%emt 0:00:16][%mdl 4] is recently more successful than 11...Qd7.} 12. h3 {[%emt 0:01:19] C83: Open Ruy Lopez: 9 c3 Be7.} Nxd2 {[%emt 0:01:37]} 13. hxg4 {[%emt 0:00:04]} Nxf1 {[%emt 0:00:06]} 14. Kxf1 {[%emt 0:00:03] The position is equal.} Na5 {[%emt 0:00:17]} 15. Bxd5 {[%emt 0:00:05]} c6 {[%emt 0:00:24]} 16. Be4 {[%emt 0:00:06]} Qxd1+ {[%emt 0:11:17]} 17. Rxd1 {[%emt 0:00:36]} Nc4 {[%emt 0:00:01]} 18. Bc1 {[%emt 0:00:07]} Rad8 {[%emt 0:01:29]} 19. Re1 {[%emt 0:00:11]} c5 {[%emt 0:00:07]} 20. g3 {[%emt 0:00:10]} Nb6 {[%emt 0:19:15]} 21. Kg2 {[%emt 0:01:37] [#]} Nd5 $146 {[%emt 0:01:04]} ({Predecessor:} 21... Rd7 22. Bc2 Re8 23. Bf5 Rdd8 24. Be4 Nd5 25. Bd2 c4 {0-1 (62) Harikrishna,P (2719)-Tabatabaei,M (2623) Belgrade 2022}) 22. g5 {[%emt 0:17:38]} Nc7 {[%emt 0:23:23]} 23. Nh4 {[%emt 0:10:20]} Ne6 {[%emt 0:06:05]} 24. f4 {[%emt 0:22:28]} g6 {[%emt 0:00:28] Against Nf5} 25. Nf3 {[%emt 0:04:18]} c4 {[%emt 0:01:39]} 26. f5 {[%emt 0:01:22]} gxf5 {[%emt 0:00:27]} 27. Bxf5 {[%emt 0:00:05]} Rfe8 $1 {[%emt 0:00:46]} 28. Rh1 {[%emt 0:03:19]} Nf8 $1 {[%emt 0:00:30]} 29. Be3 {[%emt 0:12:48]} Rd5 {[%emt 0:05:08]} 30. Be4 {[%emt 0:01:52] This bishop pair is nice.} Rd7 {[%emt 0:00:03]} 31. Bd4 {[%emt 0:04:21][%cal Oe5e6]} Red8 {[%emt 0:08:11]} 32. Rh6 {[%emt 0:03:33]} Ne6 {[%emt 0:01:32]} (32... a5 $11) 33. Bxh7+ $16 {[%emt 0:01:50]} Kg7 {[%emt 0:00:14]} 34. Bf5 {[%emt 0:01:59]} Nxg5 {[%emt 0:03:01] [#]} 35. Nxg5 $1 {[%emt 0:04:40]} Bxg5 {[%emt 0:00:19]} 36. Rh7+ {[%emt 0:02:10]} Kg8 {[%emt 0:00:08]} 37. e6 {[%emt 0:02:44][%csl Gd4][%cal Rh7h8]} (37. Rh5 $5 {[%cal Rh5g5]} Bc1 38. Bxd7 Rxd7 39. b4 $14) 37... Rxd4 {[%emt 0:00:08]} 38. exf7+ {[%emt 0:00:20]} Kf8 {[%emt 0:00:07]} 39. cxd4 {[%emt 0:00:03]} Rxd4 $11 {[%emt 0:00:02][%mdl 4096] Endgame KRB-KRB} 40. Bg6 {[%emt 0:04:11] [#] Threatening mate with Rh8+.} Bf6 {[%emt 0:00:09] Prevents Rh8+.} 41. Rh5 {[%emt 0:01:07]} Rg4 {[%emt 0:00:30][%csl LRb2,LRg6]} 42. Bf5 {[%emt 0:00:22]} Rg5 {[%emt 0:00:14]} (42... Rd4 $11) 43. Rxg5 $14 {[%emt 0:00:08]} Bxg5 {[%emt 0:00:14]} 44. Bc8 $1 {[%emt 0:00:32]} a5 {[%emt 0:01:01]} ({Black should play} 44... b4 $1 $14) 45. Ba6 $16 {[%emt 0:00:12] White is clearly better.} Bf6 {[%emt 0:00:05]} 46. Bxb5 {[%emt 0:00:14]} Bxb2 {[%emt 0:00:03]} (46... Kxf7 $16 47. Bxc4+ Kg6) 47. Bxc4 $18 {[%emt 0:00:05]} a4 {[%emt 0:00:13] Weighted Error Value: White=0.04 (flawless) /Black=0.12 (very precise)} 1/2-1/2

[Event "5th Sharjah Masters 2022"]
[Site "Sharjah"]
[Date "2022.05.23"]
[Round "3.2"]
[White "Iskandarov, Misratdin"]
[Black "Indjic, Aleksandar"]
[Result "1-0"]
[ECO "B51"]
[WhiteElo "2601"]
[BlackElo "2621"]
[Annotator "TA"]
[PlyCount "81"]
[EventDate "2022.05.21"]
[EventType "swiss"]
[EventCountry "UAE"]
[SourceTitle "playchess.com"]
[Source "ChessBase"]
[SourceQuality "1"]
[TimeControl "5400+30"]

{[%evp 9,81,7,20,17,27,6,4,10,6,2,0,0,12,7,16,19,23,5,27,20,25,20,16,19,37,-95,-81,-107,-49,-58,-22,-85,-89,-153,-173,-214,-203,-251,-252,-242,-183,-195,0,0,0,0,134,122,287,77,77,84,81,79,314,323,371,377,384,381,375,384,384,384,384,384,384,373,367,294,245,229,29982,29979]} 1. e4 {[%emt 0:00:05]} c5 {[%emt 0:01:22]} 2. Nf3 {[%emt 0:00:36]} d6 {[%emt 0:00:55]} 3. Bb5+ {[%emt 0:00:11]} Nd7 {[%emt 0:00:42]} 4. O-O {[%emt 0:00:33]} (4. Ba4 Ngf6 5. O-O e6 6. Re1 a6 7. c4 Be7 8. Nc3 O-O 9. d4 cxd4 10. Nxd4 Qc7 11. Bb3 Ne5 12. Qe2 Bd7 13. Bf4 Rac8 14. Rac1 Kh8 15. Nf3 Nxc4 16. Nb1 b5 {0-1 (43) Iskandarov,M (2601)-Indjic,A (2621) Tashkent 2022}) 4... a6 {[%emt 0:01:07]} 5. Bd3 {[%emt 0:00:14]} Ngf6 {[%emt 0:00:40]} 6. Re1 {[%emt 0:00:08] B51: Sicilian: Moscow Variation (3 Bb5+) without 3...Bd7.} e6 {[%emt 0:00:21]} 7. Bf1 {[%emt 0:00:15]} b6 {[%emt 0:09:32]} 8. d4 {[%emt 0:15:36] The position is equal.} cxd4 {[%emt 0:01:08]} 9. Nxd4 {[%emt 0:00:10]} Bb7 {[%emt 0:00:06]} 10. f3 {[%emt 0:00:21] [#]} Rc8 $5 $146 {[%emt 0:07:54][%mdl 8] New and interesting.} ({Predecessor:} 10... Be7 11. c4 O-O 12. Nc3 Rc8 13. Qd2 Qc7 14. b3 Rfd8 15. Ba3 Bf8 16. Rac1 Qb8 {0-1 (75) Kovalev,V (2623)-Martinez Alcantara,J (2591) Chess.com INT 2022}) 11. c4 {[%emt 0:01:40]} Be7 {[%emt 0:00:09]} 12. b3 {[%emt 0:00:49]} h5 {[%emt 0:03:41]} 13. Bb2 {[%emt 0:03:34]} g5 {[%emt 0:08:34]} 14. Nc3 {[%emt 0:02:25][%cal Oc3d5]} Ne5 {[%emt 0:00:57]} 15. Qd2 {[%emt 0:08:19]} Rg8 {[%emt 0:00:26]} 16. Rad1 {[%emt 0:03:39]} h4 {[%emt 0:04:07]} 17. Nd5 {[%emt 0:22:38]} exd5 $17 {[%emt 0:00:39]} 18. exd5 {[%emt 0:00:13]} Nfd7 {[%emt 0:25:14]} (18... Nh5 $1 $17 19. Bd3 Nf4) 19. Nf5 $15 {[%emt 0:00:41]} Bf8 {[%emt 0:01:34]} 20. b4 {[%emt 0:15:42]} (20. h3 $11 {remains equal.}) 20... Qf6 {[%emt 0:00:17]} 21. Nd4 {[%emt 0:00:28]} (21. Bd3 $142) 21... Bh6 $17 {[%emt 0:00:27]} 22. Re4 {[%emt 0:05:28][%cal Be1e4,Be4d4,Bd4d6][%mdl 32]} Kf8 $1 {[%emt 0:00:54]} 23. Bd3 {[%emt 0:05:07]} b5 {[%emt 0:03:48]} (23... Nxc4 24. Bxc4 Ne5 25. Nc6 $18) 24. cxb5 {[%emt 0:05:18]} Bxd5 {[%emt 0:00:19]} 25. Nf5 {[%emt 0:00:41][%cal Ob5a6]} h3 $2 {[%emt 0:07:00]} (25... Qxf5 $2 26. Rxe5 $1 {[%mdl 512]} Qf4 27. Qxf4 (27. Rxd5 Qxd2 28. Rxd2 g4 $16) 27... gxf4 28. Rxd5 $18) (25... Bxe4 $19 26. fxe4 Rg6 27. bxa6 g4 28. Nxh6 Rxh6) 26. Rd4 $11 {[%emt 0:03:22]} Be6 {[%emt 0:08:37]} (26... Bxa2 $2 27. Rxd6 Be6 28. bxa6 hxg2 29. Be4 $18 (29. Qxg2 g4 $15)) 27. Rxd6 {[%emt 0:00:13]} hxg2 {[%emt 0:00:40]} (27... axb5 $1 $11 28. Rxe6 Qxe6 29. Bxb5 Bg7 30. Bxe5 (30. Bxd7 Nxd7 31. Bxg7+ Rxg7 $15) 30... Bxe5 31. Bxd7 Qb6+ 32. Kh1 hxg2+ 33. Kxg2 Rd8) 28. Be4 $1 $16 {[%emt 0:01:09]} Qxf5 $2 {[%emt 0:07:12]} 29. Bxf5 $2 $40 {[%emt 0:01:56][%mdl 128] White goes for the king. Really sharp!} (29. Rxd7 $1 $18 {and the rest is easy. Intending Qd6+ and mate.} Nc4 30. Bxf5 Nxd2 31. R7xd2 (31. Bxe6 fxe6 32. R1xd2 g4 $18)) 29... Nxf3+ {[%emt 0:00:06]} 30. Kxg2 {[%emt 0:00:03]} Nxd2 {[%emt 0:07:02] Pair of Knights!} 31. Bxe6 {[%emt 0:04:26]} Ne4 $2 {[%emt 0:00:00]} 32. Rc6 $18 {[%emt 0:00:00]} Rxc6 {[%emt 0:00:00]} 33. bxc6 {[%emt 0:00:00][%cal Bb5c6,Bc6c7][%mdl 32]} fxe6 {[%emt 0:00:00]} 34. Rxd7 {[%emt 0:00:00]} Ke8 {[%emt 0:00:00]} 35. Be5 $1 {[%emt 0:00:17]} ({And not} 35. Kf3 Nd2+ 36. Ke2 (36. Rxd2 $2 g4+ 37. Ke2 Bxd2 $19) 36... Nc4 $11) 35... Rf8 {[%emt 0:00:42]} 36. Rd4 $1 {[%emt 0:00:09]} Rf2+ {[%emt 0:00:23] [#]} 37. Kg1 $1 {[%emt 0:00:06]} Rc2 {[%emt 0:01:03] [#] aiming for ...Nc3.} (37... Re2 $2 38. c7 Rc2 39. Rd8+ Kf7 40. c8=Q Rxc8 41. Rxc8) 38. c7 $1 {[%emt 0:00:18]} ({Worse is} 38. Rxe4 Rxc6 39. Kf2 Rc2+ 40. Re2 Rc4 $11) 38... Kf7 {[%emt 0:01:17]} 39. Rxe4 {[%emt 0:02:03] Hoping for Re3.} Bg7 {[%emt 0:00:02]} 40. Bd6 {[%emt 0:01:01] Strongly threatening Bc5.} ({Don't do} 40. Bxg7 $6 Kxg7 41. Rxe6 a5) 40... e5 $2 {[%emt 0:00:23]} (40... Bf8 $18) 41. Bc5 {[%emt 0:00:07] Weighted Error Value: White=0.21 (precise) /Black=0.55} 1-0